Cogmind - Beta 13 @@@ ROGUE MODE // 2024.04.07 @ 15:49:58 Player: LEWiKK Result: Smashed by cave-in Performance ------------- Evolutions (0) 0 Regions Visited (0) 0 Robots Destroyed (3) 15 Value Destroyed (20) 20 Prototype IDs (0) 0 Alien Tech Used (0) 0 Bonus (0) 0 TOTAL SCORE: 35 Bonus ------- None Cogmind --------- Core Integrity 0/250 Matter 257/300 Energy 83/100 System Corruption 31% Temperature Warm (112) Movement Treading (160) Location -11/Scrapyard Parts ------- > --- POWER (1) -------- (None) > --- PROPULSION (2) --- Light Treads > --- UTILITY (2) ------ (None) > --- WEAPON (2) ------- (None) > --- INVENTORY (5) ---- Small Storage Unit Medium Laser Medium Laser Assault Rifle Peak State ------------ > --- POWER ------------ Light Ion Engine > --- PROPULSION ------- Aluminum Leg Aluminum Leg > --- UTILITY ---------- Small Storage Unit Improved Terrain Scanner > --- WEAPON ----------- Assault Rifle Mining Laser > --- INVENTORY -------- Ion Engine Seismic Detector [Rating: 9] Favorites ----------- Power Ion Engine Engine Ion Engine Propulsion Aluminum Leg Treads Light Treads Leg Aluminum Leg Utility Seismic Detector Device Seismic Detector Storage Small Storage Unit Weapon Mining Laser Energy Gun Medium Laser Ballistic Gun Assault Rifle Special Weapon Mining Laser Build | -11 ------- Run | Yrd Slots Evolved . | . Power . | . Propulsion . | . Utility . | . Weapon . | . Parts Attached 24 | 24 Power 4 | 4 Engine 4 | 4 Core . | . Reactor . | . Propulsion 4 | 4 Treads 2 | 2 Leg 2 | 2 Wheel . | . Hover . | . Flight . | . Utility 8 | 8 Device 7 | 7 Storage 1 | 1 Processor . | . Hackware . | . Protection . | . Artifact . | . Weapon 8 | 8 Energy Gun 1 | 1 Energy Cannon . | . Ballistic Gun 2 | 2 Ballistic Cannon . | . Launcher . | . Special Weapon 5 | 5 Impact Weapon . | . Slashing Weapon . | . Piercing Weapon . | . Special Melee Weapon . | . Unidentified Prototypes . | . Parts Lost 14 | 14 Power 3 | 3 Propulsion 2 | 2 Utility 5 | 5 Weapon 4 | 4 Highest Loss Streak 6 | 6 To Critical Strikes . | . Average Slot Usage (%) . | . Naked Turns . | . Heaviest Build 14 | 14 Greatest Support 40 | 40 Greatest Overweight (x) . | . Average Overweight (x) . | . Largest Inventory Capacity 8 | 8 Average Capacity 5 | 5 Most Carried 5 | 5 Average Carried 3 | 3 Final Capacity 5 | 5 Final Carried 4 | 4 Class Distribution -------------------- None Dominant Class ---------------- None Resources | -11 ----------- Run | Yrd Matter Collected 606 | 606 Remotely . | . Salvage Created 232 | 232 Parts 10 | 10 Haulers Intercepted . | . Recyclers Shooed . | . Parts Field Recycled . | . Retrieved Matter . | . Parts Self-Destructed . | . Prevented . | . Kills | -11 ------- Run | Yrd Combat Hostiles Destroyed 7 | 7 Guns 7 | 7 Classes Destroyed 3 | 3 Tunneler 2 | 2 Recycler 1 | 1 Assembled 7 | 7 Best Kill Streak 2 | 2 Combat Bots Only 1 | 1 Max Kills in Single Turn 1 | 1 Gunslinging . | . Exploded . | . Melee . | . Uniques/NPCs Destroyed . | . Combat | -11 -------- Run | Yrd Hostile Shots Fired 41 | 41 Missed 12 | 12 Damage Taken 1402 | 1402 Core 279 | 279 Absorbed by Shields . | . Core Remaining (%) . | . Volleys Fired 301 | 301 Largest 2 | 2 Hottest 200 | 200 Shots Fired 493 | 493 Gun 53 | 53 Cannon . | . Launcher . | . Special 440 | 440 Kinetic 40 | 40 Thermal 453 | 453 Explosive . | . Electromagnetic . | . Robot Hit Streak 5 | 5 Robot Miss Streak 6 | 6 Penetration Max . | . Secondary Targets . | . Shots Hit Robots 29 | 29 Core Hits 18 | 18 Critical Kills . | . Critical Parts Destroyed . | . Critical Strikes 2 | 2 Burn 2 | 2 Melee Attacks . | . Impact . | . Slashing . | . Piercing . | . Sneak Attacks . | . Combat Hostiles . | . Follow-up Attacks . | . Damage Inflicted 395 | 395 Guns 371 | 371 Cannons . | . Explosions . | . Melee . | . Ramming . | . Kinetic 307 | 307 Thermal 88 | 88 Explosive . | . Electromagnetic . | . Impact . | . Slashing . | . Piercing . | . Highest Corruption 23 | 23 Average Corruption 13 | 13 Corruption Purged . | . Corruption Blocked . | . Effects 105 | 105 Message Errors 28 | 28 Matter Fused 22 | 22 Heat Flow Errors 12 | 12 Energy Discharges 22 | 22 Data Loss (minor) 14 | 14 Data Loss (major) 5 | 5 Misfires 2 | 2 Overload Shots . | . Overflow Damage . | . Projectiles . | . Explosions . | . Melee . | . Knockbacks . | . Impact . | . Kinetic . | . Secondary . | . Self-Inflicted Damage . | . Shots . | . Rammed . | . Targets Rammed . | . Kicked . | . Crushed . | . Highest Temperature 327 | 327 Average Temperature 77 | 77 Received Heat Transfer . | . Effects 2 | 2 Energy Bleed 2 | 2 Siege Activations . | . Robots Corrupted . | . Combat Hostiles . | . Parts Fried . | . Impact Corruptions . | . Robots Melted . | . Combat Hostiles . | . Parts Melted . | . Heat Transferred 383 | 383 Parts Sabotaged . | . Parts Stolen . | . Parts Stripped . | . Power Chain Reactions . | . Alert | -11 ------- Run | Yrd Peak Influence 15 | 15 Initial . | . Average . | . Maximum Alert Level . | . Low Security (%) 100 | 100 Level 1 . | . Level 2 . | . Level 3 . | . Level 4 . | . Level 5 . | . High Security . | . Max Security . | . Squads Dispatched . | . Investigation . | . Extermination . | . Reinforcement . | . Assault . | . Garrison . | . Intercept . | . Searches Triggered . | . Construction Impeded . | . Haulers Reinforced . | . Active Scanning Responses . | . Cargo Convoy Interrupts . | . Stealth | -11 --------- Run | Yrd Distress Signals . | . Communications Jammed . | . Distress Signals . | . Times Spotted 8 | 8 Peak Tracking Total 2 | 2 Tactical Retreats . | . Traps | -11 ------- Run | Yrd Traps Triggered . | . Indirectly . | . Trap Hack Attempts . | . Triggered . | . Disarmed . | . Reprogrammed . | . Reused . | . Traps Extracted . | . Installed . | . Triggered . | . Machines | -11 ---------- Run | Yrd Machines Disabled . | . Max in Single Turn . | . Machines Repaired . | . Machines Dismantled . | . Machines Sabotaged . | . Overloaded Fab Kills . | . Hacking | -11 --------- Run | Yrd Machines Accessed . | . Terminals . | . Fabricators . | . Repair Stations . | . Recycling Units . | . Scanalyzers . | . Garrison Access . | . Total Hacks . | . Successful . | . Failed . | . Catastrophic . | . Database Lockouts . | . Manual . | . Terminals . | . Fabricators . | . Repair Stations . | . Recycling Units . | . Scanalyzers . | . Garrison Access . | . Terminal Hacks . | . Fabricator Hacks . | . Repair Station Hacks . | . Recycling Unit Hacks . | . Scanalyzer . | . Garrison Access Hacks . | . Unauthorized Hacks . | . Terminals . | . Fabricators . | . Repair Stations . | . Recycling Units . | . Scanalyzers . | . Garrison Access . | . Data Cores Recovered . | . Used . | . Hacking Detections . | . Full Trace Events . | . Feedback Events . | . Feedback Blocked . | . Robot Schematics Acquired . | . Robots Built . | . Authchips . | . Time . | . Total Robot Build Rating . | . Part Schematics Acquired . | . Parts Built . | . Authchips . | . Time . | . Total Part Build Rating . | . Parts Repaired . | . Time . | . Parts Recycled . | . Recycled Matter . | . Retrieved Matter . | . Retrieved Components . | . Parts Scanalyzed . | . Part Schematics Acquired . | . Parts Damaged . | . Bothacking | -11 ------------ Run | Yrd Used RIF Installer . | . Robots Hacked . | . Non-combat . | . Combat . | . Robot Hacks Applied . | . Relay Couplers Released . | . Fabnet Peak Effective % . | . Robots Rewired . | . Allies Hacked . | . Hacks Repelled . | . Allies | -11 -------- Run | Yrd Total Allies . | . Largest Group . | . Highest-Rated Group . | . Highest-Rated Ally . | . Total Orders . | . Ally Attacks . | . Total Damage . | . Kills . | . Allies Corrupted . | . Allies Melted . | . Intel | -11 ------- Run | Yrd Robot Analysis Total . | . Derelict Logs Recovered . | . Drone Launches . | . Drone Recoveries . | . Exploration | -11 ------------- Run | Yrd Turns Passed 6371 | 6371 Spaces Moved 2661 | 2661 Core 12 | 12 Treads 892 | 892 Legs 1757 | 1757 Wheels . | . Hover . | . Flight . | . Fastest Speed 50 | 50 Average Speed 133 | 133 Slowest Speed 160 | 160 Overloaded Moves . | . Propulsion Burnouts . | . Robots Hopped . | . Cave-ins Triggered 3 | 3 Exploration Rate (%) 97 | 97 Regions Visited . Branch Regions . Pre-discovered Areas . | . Known Exits Taken . | . Unknown Exits Taken . | . Scrap Searched . | . Spaces Dug 90 | 90 Terrain Destroyed 122 | 122 Melee . | . Projectile 122 | 122 AOE . | . Terrain Rammed . | . Walls Destroyed . | . Machines Disabled . | . Actions | -11 --------- Run | Yrd Total 4117 | 4117 Wait 1108 | 1108 Move 2661 | 2661 Hop . | . Pick Up 21 | 21 Fast Attach . | . Attach 16 | 16 Detach . | . Swap 8 | 8 Drop 2 | 2 Fire 301 | 301 Melee . | . Ram . | . Kick . | . Crush . | . Escape Stasis . | . Rewire . | . Trap . | . Miscellaneous . | . Route ------- -11/Scrapyard (discovered 1 exit: [*Mat]) History --------- Turn | Location | Event 20 | -11/Scrapyard | Discovered new exit (range 14) 3013 | -11/Scrapyard | Assembled infested the area 3713 | -11/Scrapyard | System corruption reached 10% 3743 | -11/Scrapyard | Lost 3 parts (1n2u) 4612 | -11/Scrapyard | Crushed by falling debris 6364 | -11/Scrapyard | Crushed by falling debris 6364 | -11/Scrapyard | Core integrity fell below 50% 6373 | -11/Scrapyard | Crushed by falling debris 6373 | -11/Scrapyard | Smashed by cave-in Last Messages --------------- FK&M1TQ> RC0ZS|SA UFS2WWY%KNWXFPZOVXR=37KCPIO W The unstable cave ceiling collapses. Crushed by falling debris. Imp. Terrain Scanner destroyed. System corrupted by crushing effect (+2). Seismic Detector destroyed. System corrupted by crushing effect (+5). Lgt. Treads destroyed. System corrupted by crushing effect (+1). System corrupted: Substantial component data lost. The unstable cave ceiling collapses. Crushed by falling debris. Mining Laser destroyed. System corrupted by crushing effect (+1). Lgt. Ion Engine destroyed. System corrupted by crushing effect (+3). Mining Laser destroyed. System corrupted by crushing effect (+4). Map ----- +----------------------------------------------------+ | # # # #???# #???? | | ########## # ###?# #???? | | # ###?## ###### # ##???# ##??? | | # ##??############??# #???# #?#?? | | # ####??#??????#?#??# #???###########???? | | # ##?###??#??????#??# #?????#?#??????#??# | | # #####????##????#??# #?#???????#?##????? | | # #??#??####?????#??# #????????#????????? | | # #??#?##??#???????## #???##????????????? | | ########??##???##?########?????????????????? | | ### ### ####?####?#?????????????#?##?????????? | | #?####?#?##???#????????#?????????????? | | #???###??#???????#???????????????????? | | ## ### #?????###?###?#??#???????????????????? | | ## ## ########????##??????#?????????????????? | | ## ## # #???##?#????#??????????????????? | | ## ## # #?#?#??##?##???????????????????? | | ## ## ##??#####??#??#????????????????? | | ## ## # #??#???#??#??#?#???????????????? | | ## ## # #####????????#?????????????????? | | ## ## # ## ##??????#???????????????????? | | ## ## ######### ##??#???????????????????????? | | ## ## #####??## ##?????????????????????????? | | ######## ### #?### ######?????????????????????? | | #??##??# # ### # # ###??#???#?????????????? | | ######## ##@ #???#????????????????? | | ### # # #######??????#?????????????? | | #### # ### #??#??#????????????????????? | | ##########?######?## #??????????????????????????? | | ???#?###??#??#?####?????????#???????????????? | | #####?#??????????#???????????????#?????????? | | #####?#?????#?#???????##?#?????????????????? | | #?????#??##?#?##?????#?????????????????????? | | #??##???##???##?#??#???????????????????????? | | #?#????##?#????#??#????????????????????????? | | ###????##???????#??##???????????????????????? | | ######?##???#??##???#??#????##???????????????????? | | | | | | | | | | | | | | | | | | | | | | | | | | | +----------------------------------------------------+ Best States ------------- Heat Dissipation 25 Energy Generation 10 Energy Capacity 250 Matter Stores 300 Matter Capacity 300 Sight Range 16 Terrain Scan Range 16 Terrain Scan Density 10 Evasion (%) 55 Recoil Reduction 2 Item Schematics ----------------- None Robot Schematics ------------------ None Fabricated ------------ Nothing Alien Tech Used ----------------- None Achievements -------------- Curiosity Killed The Cat Challenges ------------ None Game ------ Seed ShrapnelGravmagPod Manual? 0 Play Time 01:02:48 Cumulative 16.0 hours Start 2024.04.07 @ 15:17:57 End 2024.04.07 @ 15:49:58 Sessions 0 Manual Loads 0 Difficulty Rogue Special Mode None Game No. 13 Rogue 13 Adventurer 0 Explorer 0 Win Type - Total 0 Types 0/0/0/0/0/0/0/0/0 Lore% 17 Gallery% 14 Achievement% 14 Wizard Run 0 Options --------- Layout 1 ASCII 0 Keyboard 0 Movement Mouse Keybinds 0 Fullscreen 2 Font 20/SmallcapsGlow Map View 54x42 Zoom Use 0% Tactical HUD 0 Map Filters NONE Filters NONE Steam 1 RUN: 9e3ecc6f-679f-4828-9e5c-2a2c98d1f06d